bitfinex-derivatives/quotes_SOLF0:USTF0_20241015
["timestamp","ask_amount","ask_price","bid_price","bid_amount"]
[1729023172154,3.2262,154.99,154.96,1.2979]
[1729023172353,3.2259,155.01,154.96,14.4246]
[1729023172549,9.9,155.02,154.96,14.4246]
[1729023172848,5.14,155.03,154.96,9.9]
[1729023172849,9.9,155.0,154.96,9.9]
[1729023173047,9.9,155.0,154.95,9.9]
[1729023173450,9.9,154.99,154.94,9.9]
[1729023173650,3.2269,154.96,154.94,9.9]
[1729023174153,9.9,154.98,154.92,12.6151]
[1729023174454,15.04,154.98,154.92,12.6151]
[1729023174652,3.2275,154.93,154.86,5.14]
[1729023174855,3.2275,154.93,154.9,9.9]
[1729023175244,3.2275,154.93,154.9,13.1279]
[1729023176248,9.9,154.96,154.9,13.1279]
[1729023176249,3.2273,154.94,154.91,3.2278]
[1729023176555,9.9,154.96,154.91,9.9]
[1729023176951,3.2273,154.94,154.91,9.9]
[1729023177352,3.27556158,154.98,154.93,9.9]
[1729023177554,3.2265,154.98,154.96,9.9]
[1729023177853,5.14,154.99,154.96,9.9]
[1729023178552,9.9,155.04,154.98,9.9]
[1729023178748,5.14,155.02,154.99,9.9]
[1729023179056,3.2259,155.0,154.99,9.9]
[1729023179856,3.2259,155.0,154.97,3.2264]
[1729023179857,3.2259,155.0,154.97,18.7164]
[1729023185853,3.2261,154.99,154.97,18.7164]
[1729023189064,3.2261,154.99,154.96,3.2266]
[1729023189259,3.2265,154.98,154.95,20.63]
[1729023189767,3.2265,154.98,154.95,23.8568]
[1729023189971,20.63,155.04,154.95,20.63]
[1729023190268,5.14,155.04,154.97,3.2265]
[1729023190767,3.226,155.0,154.97,3.2265]
[1729023191073,5.12,155.06,154.99,15.49]
[1729023191367,3.2246,155.07,155.03,15.49]
[1729023192064,3.2247,155.06,155.03,15.49]
[1729023192466,8.37151593,155.09,155.03,15.49]
[1729023192667,3.225,155.05,155.02,3.2254]
[1729023193172,3.2251,155.04,155.01,18.7156]
[1729023193360,15.49,155.08,154.99,15.49]
[1729023193565,15.49,155.06,154.97,20.61]
[1729023193768,15.49,155.04,154.95,20.61]
[1729023193968,20.61,155.04,154.95,20.61]
[1729023194170,3.2262,154.99,154.96,3.2267]
[1729023194566,3.15084089,155.02,154.95,20.61]
[1729023194862,3.2265,154.98,154.95,20.61]
[1729023196065,3.2266,154.97,154.95,8.3469]
[1729023196270,3.2266,154.97,154.95,5.12]
[1729023196471,15.49,155.02,154.93,15.49]
[1729023196766,3.2267,154.97,154.94,3.2272]
[1729023200873,3.2268,154.96,154.94,3.2272]
[1729023201971,3.2267,154.97,154.94,3.2272]
[1729023202375,15.49,155.02,154.94,15.49]
[1729023202684,3.2262,154.99,154.94,15.49]
[1729023203376,3.2262,154.99,154.96,3.2266]
[1729023204078,3.2261,155.0,154.97,3.2264]
[1729023204688,3.30827631,155.02,154.94,15.49]
[1729023204979,3.2262,154.99,154.96,3.2266]
[1729023206677,3.30827631,155.02,154.96,3.2267]
[1729023206977,3.2264,154.98,154.95,3.2269]
[1729023207176,18.73533837,155.02,154.92,18.203]
[1729023207574,3.2266,154.97,154.94,3.227]
[1729023207775,15.49,155.0,154.94,3.227]
[1729023208080,3.2266,154.97,154.94,3.227]
[1729023209482,3.2266,154.97,154.95,3.2269]
[1729023211977,3.2265,154.98,154.95,3.2269]
[1729023213680,3.2266,154.97,154.95,3.2269]
[1729023215085,3.2264,154.98,154.94,3.2271]
[1729023215285,5.12,155.0,154.94,3.2271]
[1729023215681,3.2267,154.97,154.94,3.2271]
[1729023215883,5.12,155.0,154.92,5.9405]
[1729023216089,5.12,155.0,154.92,4.5996]
[1729023216285,3.2271,154.95,154.92,3.2275]
[1729023216586,5.12,155.0,154.9,20.61]
[1729023216783,3.2274,154.94,154.91,3.2278]
[1729023217785,3.2272,154.94,154.92,3.2275]
[1729023218086,5.12,154.98,154.9,20.61]
[1729023218990,5.12,154.98,154.92,3.2275]
[1729023221379,3.2272,154.94,154.92,3.2275]
[1729023221886,5.12,154.98,154.92,3.2275]
[1729023222084,3.2272,154.95,154.92,3.2275]
[1729023222888,5.12,154.98,154.92,3.2275]
[1729023223090,3.2272,154.94,154.92,3.2275]
[1729023223783,3.2272,154.94,154.92,13.1475]
[1729023225390,3.2272,154.94,154.93,9.92]
[1729023225586,3.2267,154.97,154.94,3.227]
[1729023225787,3.2267,154.97,154.95,9.92]
[1729023226087,9.92,155.0,154.95,9.92]
[1729023226292,3.2264,154.98,154.96,13.1468]
[1729023226883,5.12,155.01,154.96,13.1468]
[1729023227088,3.2263,154.99,154.96,13.1468]
[1729023227887,3.2264,154.98,154.96,13.1468]
[1729023228597,3.2264,154.98,154.95,13.1468]
[1729023228890,9.92,154.96,154.91,5.12]
[1729023229199,9.92,154.96,154.9,13.1479]
[1729023229701,9.92,154.94,154.89,9.92]
[1729023229886,3.228,154.91,154.89,9.92]
[1729023230280,9.92,154.93,154.89,9.92]
[1729023230486,3.228,154.9,154.87,9.92]
[1729023230692,9.92,154.91,154.83,1.43]
[1729023230887,9.92,154.9,154.85,9.92]
[1729023231096,3.2288,154.87,154.84,9.92]
[1729023231491,9.92,154.88,154.83,1.43]
[1729023231693,3.229,154.86,154.83,11.35]
[1729023231897,15.5,154.9,154.83,1.43]
[1729023232098,15.5,154.9,154.83,4.6593]
[1729023232298,15.5,154.9,154.83,1.43]
[1729023232795,3.2284,154.88,154.83,16.93]
[1729023232988,15.5,154.9,154.83,16.93]
[1729023233588,15.5,154.9,154.83,20.1594]
[1729023234394,15.5,154.92,154.83,16.93]
[1729023234603,5.12,154.93,154.85,15.5]
[1729023234898,3.2281,154.9,154.86,3.2287]
[1729023235294,5.12,154.93,154.85,15.5]
[1729023235498,3.2282,154.89,154.85,3.229]
[1729023236904,3.2282,154.89,154.83,16.93]
[1729023237204,3.2282,154.89,154.86,3.2287]
[1729023242399,3.2287,154.87,154.84,3.2292]
[1729023242803,15.5,154.92,154.82,6.4934]
[1729023242996,3.2289,154.86,154.83,3.2293]
[1729023244408,15.5,154.92,154.83,3.2293]
[1729023244901,3.229,154.86,154.83,3.2293]
[1729023246505,5.12,154.89,154.81,20.62]
[1729023246906,3.2287,154.87,154.84,3.2291]
[1729023247206,5.12,154.89,154.84,15.5]
[1729023247708,8.3483,154.89,154.86,3.2287]
[1729023247902,5.12,154.91,154.86,15.5]
[1729023248603,3.2281,154.9,154.86,18.7287]
[1729023248909,5.12,154.91,154.86,18.7287]
[1729023249507,3.2282,154.89,154.86,18.7287]
[1729023250410,3.2282,154.89,154.86,15.5]
[1729023250611,3.2282,154.89,154.87,3.2286]
[1729023250912,3.2282,154.89,154.83,15.5]
[1729023251203,15.5,154.87,154.65,51.6716]
[1729023251410,15.5,154.85,154.75,15.5]
[1729023251707,5.12,154.84,154.77,3.2306]
[1729023251917,3.26939223,154.83,154.77,3.2306]
[1729023252212,5.12,154.84,154.78,3.2304]
[1729023252412,5.12,154.84,154.75,15.5]
[1729023253011,5.12,154.84,154.78,3.2303]
[1729023253012,3.2297,154.82,154.78,3.2303]
[1729023253212,5.12,154.84,154.75,15.5]
[1729023253709,3.23,154.81,154.77,3.2306]
[1729023254806,3.2296,154.83,154.79,3.2302]
[1729023255010,3.22902538,154.85,154.8,15.5]
[1729023255206,113.25984027,154.88,154.8,15.5]
[1729023255515,113.25984027,154.88,154.82,3.2296]
[1729023255516,3.229,154.85,154.82,3.2296]
[1729023256815,113.25984027,154.88,154.8,15.5]
[1729023257116,3.229,154.86,154.82,3.2296]
[1729023257308,111.86944027,154.88,154.82,3.2296]
[1729023257910,1.3889,154.91,154.8,15.5]
[1729023258115,5.12,154.9,154.83,15.5]
[1729023258522,3.2286,154.88,154.84,3.2292]
[1729023258823,5.12,154.9,154.84,3.2292]
[1729023259317,3.2287,154.87,154.84,3.2292]
[1729023260116,3.2287,154.87,154.83,15.5]
[1729023260311,3.2287,154.87,154.85,3.229]
[1729023260516,3.2287,154.87,154.83,15.5]
[1729023261307,3.2287,154.87,154.83,15.45848883]
[1729023261512,3.2287,154.87,154.84,3.2291]
[1729023262119,3.2286,154.88,154.85,3.229]
[1729023262318,3.2286,154.88,154.83,15.45848883]
[1729023263011,3.2286,154.88,154.84,3.2291]
[1729023263210,3.2287,154.87,154.84,3.2291]
[1729023266523,3.229,154.86,154.82,8.3495]
[1729023266819,3.229,154.86,154.82,5.12]
[1729023267324,3.229,154.86,154.83,3.2293]
[1729023267924,3.229,154.86,154.84,9.92]
[1729023269323,3.229,154.85,154.83,9.92]
[1729023270826,3.2304,154.79,154.75,3.231]
[1729023271028,9.92,154.76,154.71,9.92]
[1729023271324,9.92,154.74,154.7,1.3758]
[1729023271820,8.27878861,154.75,154.7,1.3758]
[1729023272023,8.27878861,154.75,154.67,15.53]
[1729023272424,5.89886343,154.84,154.71,15.53]
[1729023272628,15.53,154.82,154.71,15.53]
[1729023272925,3.2309,154.77,154.72,3.2316]
[1729023273122,5.12,154.78,154.71,15.53]
[1729023274626,20.65,154.78,154.7,1.4359]
[1729023275527,3.231,154.76,154.7,4.6681]
[1729023275726,20.65,154.78,154.7,4.6681]
[1729023277034,3.2311,154.76,154.71,3.2318]
[1729023277234,5.12,154.78,154.71,3.2318]
[1729023277729,3.2311,154.75,154.71,3.2318]
[1729023281533,3.231,154.76,154.71,3.2319]
[1729023281834,3.2439083,154.87,154.74,15.53]
[1729023282032,3.2292,154.85,154.81,18.7598]
[1729023282227,3.2292,154.85,154.81,15.53]
[1729023282735,3.2297,154.82,154.78,3.2304]
[1729023282936,8.30184249,154.85,154.76,15.53]
[1729023283338,3.2301,154.8,154.76,18.7608]
[1729023283835,3.2303,154.8,154.75,5.8521]
[1729023284030,5.12,154.81,154.75,2.6211]
[1729023284231,5.12,154.81,154.72,20.65]
[1729023284930,3.2303,154.79,154.75,3.231]
[1729023285126,5.12,154.81,154.71,2.7706]
[1729023285330,15.53,154.8,154.79,0.07799854]
[1729023285530,3.2315,154.74,154.7,4.668]
[1729023285739,5.12,154.76,154.7,4.668]
[1729023286130,3.2314,154.74,154.7,4.668]
[1729023286535,3.2314,154.74,154.7,1.4359]
[1729023286743,3.2314,154.74,154.71,3.232]
[1729023286933,3.2313,154.75,154.71,3.232]
[1729023288239,8.36206374,154.76,154.7,4.668]
[1729023288240,3.2313,154.74,154.7,4.668]
[1729023289239,3.2313,154.75,154.7,1.4359]
[1729023289535,8.42057541,154.76,154.67,1.3845]
[1729023289731,5.12,154.76,154.67,1.3845]
[1729023289931,3.2311,154.75,154.68,15.53]
[1729023290632,3.2311,154.75,154.71,3.2318]
[1729023293842,5.12,154.76,154.71,3.2318]
[1729023294041,3.2313,154.74,154.71,3.2318]
[1729023296246,1.3268,154.82,154.7,15.53]
[1729023296433,15.53,154.8,154.7,15.53]
[1729023297040,3.2313,154.75,154.72,3.2317]
[1729023297946,3.2314,154.74,154.72,3.2317]
[1729023299747,5.12,154.76,154.72,3.2317]
[1729023299953,3.2314,154.74,154.72,3.2317]
[1729023300448,5.12,154.76,154.7,15.53]
[1729023300649,8.3511,154.76,154.7,15.53]
[1729023301351,5.12,154.76,154.7,15.53]
[1729023301550,5.12,154.76,154.67,1.3845]
[1729023301551,5.12,154.76,154.67,16.9145]
[1729023301847,5.12,154.76,154.68,3.2324]
[1729023302054,5.12,154.76,154.67,16.9145]
[1729023302353,15.53,154.75,154.66,1.3611]
[1729023302549,15.53,154.71,154.63,4.58569519]
[1729023302755,5.12,154.7,154.63,4.58569519]
[1729023302952,3.233,154.67,154.63,4.5434]
[1729023303161,5.12,154.7,154.63,1.3099]
[1729023303356,15.53,154.69,154.6,15.53]
[1729023303652,15.53,154.69,154.6,18.2118]
[1729023303861,5.12,154.68,154.62,15.53]
[1729023304260,3.2327,154.68,154.64,3.2333]
[1729023306556,8.3527,154.68,154.64,3.2333]
[1729023306752,5.12,154.68,154.6,2.6818]
[1729023306960,15.53,154.67,154.6,2.6818]
[1729023307853,21.52415159,154.69,154.6,18.2118]
[1729023308057,1.3601,154.69,154.61,15.53]
[1729023308250,1.4034,154.7,154.61,15.53]
[1729023308251,5.12,154.68,154.61,15.53]
[1729023308457,5.12,154.68,154.65,3.2331]
[1729023309375,8.3526,154.68,154.65,3.2331]
[1729023311381,5.12,154.68,154.6,2.6818]
[1729023311689,15.53,154.67,154.6,2.6818]
[1729023312379,15.53,154.67,154.62,3.2338]
[1729023313273,3.2333,154.65,154.62,3.2338]
[1729023315268,15.53,154.67,154.6,1.3029]
[1729023315469,8.3529,154.67,154.64,3.2332]
[1729023315677,3.19654637,154.68,154.61,15.53]
[1729023315874,15.05,154.67,154.62,9.93]
[1729023316073,3.233,154.66,154.64,3.2334]
[1729023316279,3.233,154.66,154.62,9.93]
[1729023316572,3.233,154.66,154.6,1.3029]
[1729023316779,3.233,154.66,154.63,3.2335]
[1729023317682,9.93,154.66,154.62,9.93]
[1729023317873,9.93,154.65,154.61,3.234]
[1729023318074,9.93,154.63,154.59,9.93]
[1729023318270,13.164,154.62,154.57,3.2349]
[1729023318582,9.93,154.62,154.57,9.93]
[1729023318972,3.2342,154.61,154.58,3.2346]
[1729023319274,9.93,154.62,154.57,9.93]
[1729023319880,3.2342,154.61,154.57,3.2347]
[1729023320081,3.2342,154.61,154.55,2.6783]
[1729023320284,20.66,154.63,154.55,2.6783]
[1729023320485,3.2343,154.6,154.57,3.2348]
[1729023321086,3.2346,154.59,154.55,5.9134]
[1729023321384,3.2346,154.59,154.55,2.6783]
[1729023321573,3.2346,154.59,154.56,3.235]
[1729023321778,15.54,154.65,154.55,18.2183]
[1729023321973,2.7295,154.66,154.57,15.54]
[1729023322172,5.12,154.65,154.6,3.2342]
[1729023322381,8.3533,154.65,154.57,15.54]
[1729023322982,8.3533,154.65,154.62,3.2337]
[1729023323886,5.12,154.65,154.63,3.2336]
[1729023324493,4.5945,154.66,154.63,3.2336]
[1729023324786,5.12,154.65,154.63,3.2336]
[1729023327083,8.3532,154.65,154.63,3.2336]
[1729023328884,5.12,154.65,154.59,15.54]
[1729023329082,5.12,154.65,154.62,3.2338]
[1729023329489,5.12,154.65,154.59,15.54]
[1729023329993,8.3533,154.65,154.59,15.54]
[1729023330884,8.3533,154.65,154.6,3.2341]
[1729023331084,8.3533,154.65,154.59,15.54]
[1729023331389,8.3533,154.65,154.62,3.2337]
[1729023331696,3.2334,154.64,154.62,3.2337]
[1729023332894,3.28751251,154.69,154.66,3.233]
[1729023333189,3.28751251,154.69,154.65,15.54]
[1729023333385,6.52011251,154.69,154.65,18.7731]
[1729023333583,3.28751251,154.69,154.65,15.54]
[1729023333793,5.12,154.72,154.7,3.232]
[1729023333991,5.12,154.72,154.67,15.54]
[1729023334693,8.3519,154.72,154.68,3.2324]
[1729023335786,5.12,154.72,154.65,15.54]
[1729023335988,5.12,154.72,154.63,15.54]
[1729023336894,5.12,154.72,154.65,3.233]
[1729023337698,15.54,154.73,154.65,15.54]
[1729023337888,19.5944,154.75,154.65,15.54]
[1729023338094,5.12,154.74,154.67,15.54]
[1729023338287,3.2318,154.72,154.7,3.2321]
[1729023338693,3.2318,154.72,154.67,15.54]
[1729023339196,3.2318,154.72,154.61,9.276]
[1729023339197,5.12,154.74,154.69,15.54]
[1729023339391,4.0544,154.75,154.69,15.54]
[1729023339392,2.6829,154.75,154.69,15.54]
[1729023339594,5.12,154.74,154.71,3.2318]
[1729023339995,8.3515,154.74,154.71,3.2318]
[1729023340500,3.2317,154.73,154.7,3.2321]
[1729023341994,3.31102922,154.77,154.69,15.54]
[1729023342197,8.331,154.76,154.73,3.2315]
[1729023342401,8.331,154.76,154.71,15.54]
[1729023342402,8.28451703,154.76,154.71,15.54]
[1729023342796,3.2314,154.74,154.71,15.54]
[1729023343503,3.2314,154.74,154.71,3.2318]
[1729023345504,3.2314,154.74,154.72,3.2317]
[1729023345702,8.35305489,154.76,154.69,15.54]
[1729023345898,3.2314,154.74,154.69,15.54]
[1729023346707,3.2314,154.74,154.71,3.2318]
[1729023346902,8.35305489,154.76,154.69,15.54]
[1729023347104,3.2313,154.75,154.69,15.54]
[1729023347504,11.58405489,154.76,154.69,15.54]
[1729023347812,8.35305489,154.76,154.69,15.54]
[1729023348111,3.2311,154.75,154.73,3.2314]
[1729023350109,3.2311,154.75,154.69,15.54]
[1729023350110,5.1,154.76,154.74,3.2312]
[1729023353906,8.3309,154.76,154.74,3.2312]
[1729023355813,8.3309,154.76,154.74,13.1612]
[1729023356415,5.1,154.76,154.69,9.1146]
[1729023356717,3.2311,154.75,154.73,9.93]
[1729023357214,3.2317,154.73,154.7,3.2321]
[1729023357414,3.2317,154.73,154.71,9.93]
[1729023359309,3.2317,154.73,154.71,13.162]
[1729023359713,3.2317,154.73,154.72,9.93]
[1729023360908,3.2317,154.73,154.71,13.162]
[1729023361913,5.1,154.75,154.71,13.162]
[1729023362109,3.2315,154.74,154.71,13.162]
[1729023362314,5.1,154.75,154.71,13.162]
[1729023362514,9.93,154.72,154.62,6.4675]
[1729023362711,15.03,154.71,154.66,9.93]
[1729023363118,3.2325,154.69,154.66,13.1629]
[1729023363315,6.41011541,154.69,154.66,13.1629]
[1729023363710,8.3321,154.71,154.68,13.1624]
[1729023363912,5.1,154.75,154.7,15.53]
[1729023365018,8.3312,154.75,154.72,3.2316]
[1729023365818,8.3309,154.77,154.73,3.2314]
[1729023366016,16.842,154.81,154.74,15.53]
[1729023366017,1.312,154.81,154.74,15.53]
[1729023366223,5.1,154.78,154.74,15.53]
[1729023366416,8.3306,154.78,154.75,3.2311]
[1729023366618,8.3306,154.78,154.74,15.53]
[1729023366619,5.1,154.78,154.74,15.53]
[1729023367020,3.2307,154.77,154.74,18.7611]
[1729023367519,3.2307,154.77,154.74,15.53]
[1729023368526,3.2307,154.77,154.75,3.2311]
[1729023369721,3.2307,154.77,154.74,15.53]
[1729023369923,3.231,154.76,154.73,3.2314]
[1729023370425,3.29508726,154.76,154.7,15.53]
[1729023370629,20.63,154.78,154.69,4.1084]
[1729023371529,3.2315,154.74,154.71,3.2318]
[1729023371729,3.30888344,154.74,154.71,3.2318]
[1729023372028,5.1,154.78,154.72,3.2316]
[1729023372429,3.2313,154.75,154.72,3.2316]
[1729023373025,8.3309,154.77,154.74,3.2312]
[1729023373529,5.1,154.77,154.74,3.2312]
[1729023373920,5.1,154.77,154.69,4.1084]
[1729023374223,15.53,154.76,154.69,2.7275]
[1729023374419,15.53,154.74,154.64,15.53]
[1729023374631,5.1,154.73,154.67,3.2327]
[1729023375018,3.2323,154.7,154.64,20.63]
[1729023375219,3.2323,154.7,154.68,3.2326]
[1729023376729,5.1,154.73,154.68,3.2326]
[1729023376930,5.1,154.73,154.66,3.2329]
[1729023377228,15.53,154.72,154.62,15.53]
[1729023377436,15.53,154.7,154.61,4.1092]
[1729023377625,5.1,154.69,154.62,3.2337]
[1729023377827,8.3418364,154.69,154.62,3.2337]
[1729023378027,8.3418364,154.69,154.63,3.2336]
[1729023378028,3.2331,154.66,154.63,3.2336]
[1729023378226,8.3418364,154.69,154.61,4.1092]
[1729023378836,3.233,154.67,154.63,3.2336]
[1729023379034,8.3418364,154.69,154.63,3.2336]
[1729023379235,8.3418364,154.69,154.61,4.1092]
[1729023379435,3.2332,154.66,154.62,3.2338]
[1729023379935,8.3418364,154.69,154.62,3.2338]
[1729023380135,3.2332,154.65,154.62,3.2338]
[1729023381639,3.2332,154.66,154.61,3.234]
[1729023381838,15.53,154.68,154.61,3.234]
[1729023382040,15.53,154.68,154.57,4.0521]
[1729023382239,15.53,154.66,154.57,4.0521]
[1729023382441,5.1,154.65,154.6,3.2341]
[1729023382644,5.1,154.65,154.57,4.0521]
[1729023382845,3.2335,154.64,154.59,3.2344]
[1729023383141,5.1,154.65,154.59,3.2344]
[1729023383342,3.2338,154.63,154.59,3.2344]
[1729023383646,3.2338,154.63,154.6,3.2343]
[1729023384944,3.2338,154.63,154.57,4.0521]
[1729023385146,3.2338,154.63,154.59,3.2343]
[1729023385948,5.1,154.65,154.57,4.0521]
[1729023385949,3.2342,154.61,154.57,3.2348]
[1729023386444,8.3342,154.61,154.57,3.2348]
[1729023387042,8.3342,154.61,154.54,15.53]
[1729023387443,3.2344,154.6,154.54,15.53]
[1729023387648,3.2344,154.6,154.56,3.235]
[1729023388050,3.2344,154.6,154.54,15.53]
[1729023388051,16.9293,154.64,154.54,15.53]
[1729023388248,3.234,154.62,154.57,15.53]
[1729023388655,3.234,154.62,154.58,3.2346]
[1729023388850,3.2342,154.61,154.57,15.53]
[1729023389558,3.2342,154.61,154.55,15.53]
[1729023390252,5.1,154.63,154.55,15.53]
[1729023390449,3.234,154.62,154.59,3.2345]
[1729023390766,5.1,154.63,154.59,3.2345]
[1729023390955,8.3338,154.63,154.59,3.2343]
[1729023391459,5.1,154.63,154.59,3.2343]
[1729023392653,3.2339,154.62,154.59,3.2343]
[1729023393164,8.3336,154.64,154.6,3.2341]
[1729023393364,15.53,154.67,154.6,3.2341]
[1729023393662,5.1,154.66,154.57,15.53]
[1729023393854,3.2342,154.61,154.58,3.2346]
[1729023394054,5.1,154.62,154.57,15.53]
[1729023394560,5.1,154.62,154.59,3.2344]
[1729023394561,8.334,154.62,154.59,3.2344]
[1729023398364,3.2342,154.61,154.58,3.2346]
[1729023401465,5.1,154.62,154.58,3.2346]
[1729023401672,3.2342,154.61,154.58,3.2346]
[1729023402966,5.1,154.62,154.57,15.53]
[1729023403166,5.1,154.62,154.53,6.4539]
[1729023403167,20.63,154.62,154.53,1.3539]
[1729023403366,15.53,154.6,154.53,1.3539]
[1729023403675,3.28178582,154.59,154.53,4.5895]
[1729023404168,3.235,154.57,154.54,3.2355]
[1729023404373,3.28178582,154.59,154.54,3.2355]
[1729023404672,5.1,154.58,154.54,3.2355]
[1729023405166,20.63,154.58,154.49,1.3149]
[1729023405760,3.2352,154.56,154.52,3.2359]
[1729023405964,20.63,154.58,154.49,1.3149]
[1729023407672,20.63,154.58,154.51,3.2361]
[1729023408366,3.2355,154.55,154.51,3.2361]
[1729023410674,3.2358,154.53,154.5,3.2361]
[1729023410875,15.53,154.56,154.49,1.3149]
[1729023411270,3.2358,154.53,154.5,3.2362]
[1729023411479,15.53,154.56,154.47,2.7589]
[1729023411872,3.236,154.52,154.48,3.2366]
[1729023412071,3.236,154.52,154.47,2.7589]
[1729023412268,3.236,154.52,154.46,15.53]
[1729023412473,3.236,154.52,154.49,3.2366]
[1729023413282,3.2359,154.53,154.49,3.2364]
[1729023414371,3.236,154.52,154.49,3.2364]
[1729023414575,5.1,154.54,154.48,3.2366]
[1729023414771,20.63,154.54,154.45,5.1]
[1729023415176,3.2364,154.51,154.47,3.2369]
[1729023415379,20.63,154.54,154.47,3.2369]
[1729023415978,3.2363,154.51,154.48,3.2367]
[1729023416173,3.2363,154.51,154.45,5.1]
[1729023416379,20.63,154.54,154.45,5.1]
[1729023416574,20.63,154.54,154.47,3.2369]
[1729023417281,3.2364,154.5,154.47,3.2369]
[1729023418282,3.236,154.52,154.49,3.2365]
[1729023420675,3.2359,154.53,154.5,3.2362]
[1729023422788,2.8085,154.55,154.44,3.3043056]
[1729023422983,5.1,154.54,154.49,15.53]
[1729023423191,5.1,154.56,154.51,15.53]
[1729023423782,5.1,154.56,154.54,13.1854]
[1729023424587,8.335,154.57,154.54,13.1854]
[1729023425783,8.335,154.57,154.54,3.2354]
[1729023426191,5.1,154.57,154.51,15.54]
[1729023426392,5.1,154.57,154.55,3.2351]
[1729023426989,5.1,154.57,154.55,3.2352]
[1729023427587,5.92187734,154.59,154.51,15.54]
[1729023427788,3.30161812,154.61,154.55,15.54]
[1729023427987,5.1,154.61,154.55,15.54]
[1729023428196,8.28640776,154.61,154.55,15.54]
[1729023428989,3.2344,154.6,154.57,3.2348]
[1729023429990,3.2344,154.6,154.58,3.2347]
[1729023430795,3.2344,154.6,154.57,3.2347]
[1729023431893,3.2344,154.6,154.55,15.54]
[1729023432296,8.3341,154.61,154.55,15.54]
[1729023432596,8.3341,154.61,154.58,3.2345]
[1729023432795,11.55277719,154.61,154.58,3.2345]
[1729023433291,8.3341,154.61,154.58,3.2345]
[1729023434204,8.3341,154.61,154.55,15.54]
[1729023434892,8.3341,154.61,154.58,3.2346]
[1729023436390,3.2343,154.6,154.58,3.2346]
[1729023436584,3.2343,154.6,154.55,15.54]
[1729023436798,8.26402458,154.61,154.56,3.235]
[1729023436985,8.26402458,154.61,154.53,15.54]
[1729023436986,3.2344,154.6,154.53,15.54]
[1729023437191,8.26402458,154.61,154.56,3.235]
[1729023438099,3.2344,154.6,154.55,15.54]
[1729023439000,3.2344,154.6,154.57,3.2348]
[1729023439499,3.2346,154.59,154.56,3.2351]
[1729023441991,5.1,154.62,154.57,3.2348]
[1729023441992,3.2344,154.6,154.57,3.2348]
[1729023443606,3.2345,154.59,154.57,3.2348]
[1729023443799,3.23205849,154.58,154.52,15.54]
[1729023444098,18.166,154.61,154.52,15.54]
[1729023444289,3.235,154.57,154.54,3.2355]
[1729023445797,3.235,154.57,154.54,13.1855]
[1729023446000,3.2353,154.56,154.52,9.95]
[1729023446198,9.95,154.56,154.51,9.95]